fUSD/lending_fUSD_20240421
["ID","MTS","AMOUNT","RATE_DAILY","PERIOD"]
[323109270,1713670246627,-677.05,0.00016985,2]
[323109271,1713670246636,-502.28771257,0.00016985,2]
[323109272,1713670246645,-519.38599542,0.00016985,2]
[323109273,1713670246655,-500.0,0.00016985,2]
[323109274,1713670246667,-500.0,0.00016985,2]
[323109275,1713670246677,-520.11443277,0.00016985,2]
[323109276,1713670246686,-500.38013755,0.00016985,2]
[323109277,1713670246695,-500.0,0.00016985,2]
[323109278,1713670246704,-185.50957336,0.00016985,2]
[323109279,1713670246713,-501.10578898,0.00016985,2]
[323109280,1713670246722,-502.32391555,0.00016985,2]
[323109281,1713670246731,-428.93650723,0.00016985,2]
[323109282,1713670246741,-501.39322883,0.00016985,2]
[323109283,1713670246751,-500.86620451,0.00016985,2]
[323109284,1713670246761,-500.0,0.00016985,2]
[323109285,1713670246770,-472.3308992,0.00016985,2]
[323109286,1713670246779,-500.0,0.00016985,2]
[323109287,1713670246788,-500.0,0.00016985,2]
[323109288,1713670246798,-501.22219544,0.00016985,2]
[323109290,1713670246807,-500.0,0.00016985,2]
[323109292,1713670246816,-500.0,0.00016985,2]
[323109294,1713670246826,-500.48504234,0.00016985,2]
[323109296,1713670246836,-501.53430809,0.00016985,2]
[323109299,1713670246845,-500.0,0.00016985,2]
[323109301,1713670246855,-500.0,0.00016985,2]
[323109303,1713670246863,-500.5273121,0.00016985,2]
[323109304,1713670246873,-500.41272102,0.00016985,2]
[323109306,1713670246882,-500.39403756,0.00016985,2]
[323109309,1713670246892,-2593.25,0.00016985,2]
[323109311,1713670246901,-501.46067881,0.00016985,2]
[323109313,1713670246910,-500.0,0.00016986,2]
[323109315,1713670246922,-500.0,0.00016986,2]
[323109317,1713670246932,-500.0,0.00016986,2]
[323109319,1713670246941,-320.11668551,0.00016986,2]
[323109321,1713670246950,-500.0,0.00016986,2]
[323109323,1713670246959,-186.78355896,0.00016986,2]
[323109324,1713670246968,-500.0,0.00016986,2]
[323109326,1713670246977,-500.0,0.00016986,2]
[323109329,1713670246986,-184.61846401,0.00016986,2]
[323109331,1713670246995,-648.81068469,0.00016986,2]
[323109332,1713670247005,-171.81246025,0.00016986,2]
[323109335,1713670247015,-500.0,0.00016986,2]
[323109337,1713670247024,-500.0,0.00016986,2]
[323109339,1713670247033,-500.0,0.00016986,2]
[323109341,1713670247042,-639.52,0.00016986,2]
[323109343,1713670247052,-500.0,0.00016986,2]
[323109345,1713670247061,-500.0,0.00016986,2]
[323109347,1713670247070,-511.13489479,0.00016986,2]
[323109349,1713670247079,-500.0,0.00016986,2]
[323109351,1713670247088,-441.47852737,0.00016986,2]
[323109353,1713670247097,-500.0,0.00016986,2]
[323109355,1713670247106,-500.0,0.00016986,2]
[323109357,1713670247115,-500.0,0.00016986,2]
[323109359,1713670247124,-500.0,0.00016986,2]
[323109361,1713670247133,-500.0,0.00016986,2]
[323109363,1713670247142,-469.520267,0.00017,2]
[323109365,1713670247151,-962.096,0.00017014,2]
[323109367,1713670247160,-616.0,0.00017233,2]
[323109369,1713670247172,-4113.65800435,0.00017258,2]
[323109371,1713670247181,-500.0,0.00017258,2]
[323109373,1713670247190,-500.0,0.00017258,2]
[323109375,1713670247199,-500.0,0.00017258,2]
[323109377,1713670247208,-1127.77,0.00017258,2]
[323109379,1713670247217,-1041.93,0.00017258,2]
[323109381,1713670247226,-786.19,0.00017258,2]
[323109383,1713670247235,-1958.0,0.00017258,2]
[323109385,1713670247244,-500.0,0.00017258,2]
[323109387,1713670247253,-151.0,0.00017258,2]
[323109389,1713670247262,-500.0,0.00017258,2]
[323109391,1713670247272,-500.0,0.00017258,2]
[323109393,1713670247281,-500.0,0.00017258,2]
[323109395,1713670247291,-1806.43,0.00017258,2]
[323109397,1713670247299,-500.0,0.00017258,2]
[323109399,1713670247308,-500.0,0.00017258,2]
[323109400,1713670247318,-500.0,0.00017258,2]
[323109402,1713670247327,-834.31,0.00017258,2]
[323109405,1713670247337,-500.0,0.00017258,2]
[323109407,1713670247347,-500.0,0.00017258,2]
[323109408,1713670247355,-500.0,0.00017258,2]
[323109411,1713670247365,-500.0,0.00017258,2]
[323109413,1713670247375,-500.0,0.00017258,2]
[323109415,1713670247384,-500.0,0.00017258,2]
[323109417,1713670247394,-500.0,0.00017258,2]
[323109419,1713670247403,-500.0,0.00017258,2]
[323109420,1713670247413,-1630.7,0.00017258,2]
[323109423,1713670247423,-2279.27,0.00017258,2]
[323109425,1713670247432,-500.0,0.00017258,2]
[323109427,1713670247442,-1356.27,0.00017258,2]
[323109429,1713670247451,-500.0,0.00017258,2]
[323109431,1713670247460,-500.0,0.00017258,2]
[323109433,1713670247470,-500.0,0.00017258,2]
[323109435,1713670247479,-500.0,0.00017258,2]
[323109437,1713670247489,-500.0,0.00017258,2]
[323109439,1713670247499,-500.0,0.00017258,2]
[323109441,1713670247512,-576.36,0.00017258,2]
[323109443,1713670247521,-500.0,0.00017258,2]
[323109445,1713670247531,-500.0,0.00017259,2]
[323109447,1713670247541,-546.66349667,0.00017259,2]
[323109449,1713670247550,-170.40447882,0.00017259,2]
[323109451,1713670247559,-530.31168413,0.00017259,2]
[323109453,1713670247569,-208.00874268,0.00017259,2]
[323109455,1713670247578,-500.0,0.00017259,2]
[323109457,1713670247588,-622.76,0.00017259,2]
[323109459,1713670247597,-500.0,0.00017259,2]
[323109461,1713670247607,-500.0,0.00017259,2]
[323109463,1713670247616,-311.24937733,0.00017259,2]
[323109465,1713670247625,-500.0,0.00017259,2]
[323109467,1713670247634,-500.0,0.00017259,2]
[323109469,1713670247643,-500.0,0.00017259,2]
[323109471,1713670247652,-500.0,0.00017259,2]
[323109474,1713670247666,-588.00768889,0.00017259,2]
[323109476,1713670247676,-500.0,0.00017259,2]
[323109478,1713670247685,-352.57918501,0.00017259,2]
[323109480,1713670247694,-500.0,0.00017259,2]
[323109482,1713670247703,-500.0,0.00017259,2]
[323109484,1713670247712,-585.16,0.00017259,2]
[323109485,1713670247721,-500.0,0.00017259,2]
[323109488,1713670247730,-196.44,0.00017259,2]
[323109490,1713670247740,-500.0,0.00017259,2]
[323109492,1713670247749,-597.90300808,0.00017259,2]
[323109493,1713670247759,-500.0,0.00017259,2]
[323109496,1713670247768,-532.28882969,0.00017259,2]
[323109498,1713670247777,-368.28651257,0.00017259,2]
[323109500,1713670247787,-365.57547565,0.00017259,2]
[323109501,1713670247796,-500.0,0.00017259,2]
[323109503,1713670247806,-235.47,0.00017259,2]
[323109506,1713670247815,-408.64273726,0.00017259,2]
[323109507,1713670247824,-500.0,0.00017259,2]
[323109509,1713670247834,-500.0,0.00017259,2]
[323109512,1713670247843,-273.99697305,0.00017259,2]
[323109514,1713670247853,-500.0,0.00017259,2]
[323109515,1713670247862,-278.05066542,0.00017259,2]
[323109517,1713670247872,-500.0,0.00017259,2]
[323109520,1713670247881,-441.56571037,0.00017259,2]
[323109522,1713670247891,-634.74175115,0.00017259,2]
[323109524,1713670247900,-176.58699204,0.00017259,2]
[323109526,1713670247909,-358.68891561,0.00017259,2]
[323109528,1713670247920,-276.6562944,0.00017259,2]
[323109529,1713670247929,-247.59,0.00017259,2]
[323109532,1713670247939,-155.51703767,0.00017259,2]
[323109534,1713670247948,-500.0,0.00017259,2]
[323109536,1713670247957,-500.0,0.00017259,2]
[323109538,1713670247967,-500.0,0.00017259,2]
[323109540,1713670247976,-500.0,0.00017259,2]
[323109541,1713670247986,-500.0,0.00017259,2]
[323109544,1713670247996,-424.55102337,0.00017259,2]
[323109546,1713670248005,-457.906688,0.00017259,2]
[323109547,1713670248014,-500.0,0.00017259,2]
[323109550,1713670248024,-500.0,0.00017259,2]
[323109552,1713670248033,-498.97885927,0.00017259,2]
[323109554,1713670248042,-500.0,0.00017259,2]
[323109556,1713670248051,-500.0,0.00017259,2]
[323109558,1713670248060,-500.0,0.00017259,2]
[323109559,1713670248069,-500.0,0.00017259,2]
[323109560,1713670248078,-500.0,0.00017259,2]
[323109561,1713670248087,-500.0,0.00017259,2]
[323109562,1713670248097,-500.0,0.00017259,2]
[323109563,1713670248106,-505.96219593,0.00017259,2]
[323109564,1713670248116,-500.0,0.00017259,2]
[323109565,1713670248125,-500.0,0.00017259,2]
[323109566,1713670248134,-500.0,0.00017259,2]
[323109568,1713670248143,-500.0,0.00017259,2]
[323109570,1713670248153,-499.85361952,0.00017259,2]
[323109572,1713670248162,-500.0,0.00017259,2]
[323109574,1713670248174,-500.0,0.00017259,2]
[323109576,1713670248184,-606.07093107,0.00017259,2]
[323109578,1713670248194,-500.0,0.00017259,2]
[323109581,1713670248203,-500.0,0.00017259,2]
[323109583,1713670248212,-500.0,0.00017259,2]
[323109585,1713670248222,-500.0,0.00017259,2]
[323109587,1713670248231,-292.53271355,0.00017259,2]
[323109589,1713670248240,-419.31489624,0.00017259,2]
[323109591,1713670248249,-379.77166556,0.00017259,2]
[323109593,1713670248258,-407.65589195,0.00017259,2]
[323109595,1713670248267,-500.0,0.00017259,2]
[323109597,1713670248277,-500.0,0.00017259,2]
[323109599,1713670248287,-500.0,0.00017259,2]
[323109600,1713670248296,-500.0,0.00017259,2]
[323109603,1713670248305,-151.0,0.00017259,2]
[323109605,1713670248315,-500.0,0.00017259,2]
[323109607,1713670248324,-151.0,0.00017259,2]
[323109609,1713670248333,-600.2039916,0.00017259,2]
[323109611,1713670248343,-500.0,0.00017259,2]
[323109613,1713670248353,-500.0,0.00017259,2]
[323109615,1713670248362,-616.44,0.00017259,2]
[323109617,1713670248371,-525.71065053,0.00017259,2]
[323109619,1713670248380,-414.21,0.00017259,2]
[323109620,1713670248389,-500.0,0.00017259,2]
[323109622,1713670248398,-329.09247777,0.00017259,2]
[323109624,1713670248407,-500.0,0.00017259,2]
[323109626,1713670248419,-200.0,0.00017259,2]
[323109628,1713670248428,-500.0,0.00017259,2]
[323109630,1713670248438,-500.0,0.00017259,2]
[323109633,1713670248447,-167.73804507,0.00017259,2]
[323109635,1713670248457,-274.19516729,0.00017259,2]
[323109637,1713670248467,-500.0,0.00017259,2]
[323109639,1713670248476,-500.0,0.00017259,2]
[323109641,1713670248485,-278.360643,0.00017259,2]
[323109642,1713670248495,-500.0,0.00017259,2]
[323109644,1713670248506,-278.360643,0.00017259,2]
[323109647,1713670248517,-296.39792816,0.00017259,2]
[323109649,1713670248526,-500.0,0.00017259,2]
[323109651,1713670248535,-639.32,0.00017259,2]
[323109653,1713670248546,-1142.59,0.00017259,2]
[323109654,1713670248555,-243.16424071,0.00017259,2]
[323109656,1713670248564,-1722.38,0.00017259,2]
[323109659,1713670248574,-500.0,0.00017259,2]
[323109660,1713670248584,-677.05,0.00017259,2]
[323109662,1713670248595,-500.0,0.00017259,2]
[323109664,1713670248605,-172.80672271,0.00017259,2]
[323109667,1713670248614,-480.95180996,0.00017259,2]
[323109668,1713670248623,-500.0,0.00017259,2]
[323109669,1713670248632,-482.8826216,0.00017259,2]
[323109670,1713670248641,-251.28598623,0.00017259,2]
[323109671,1713670248650,-500.0,0.0001726,2]
[323109672,1713670248660,-500.0,0.0001726,2]
[323109673,1713670248671,-277.49447727,0.0001726,2]
[323109674,1713670248680,-448.62745289,0.0001726,2]
[323109675,1713670248690,-159.37,0.0001726,2]
[323109676,1713670248699,-500.0,0.0001726,2]
[323109677,1713670248711,-500.0,0.0001726,2]
[323109678,1713670248720,-500.0,0.0001726,2]
[323109679,1713670248730,-500.0,0.0001726,2]
[323109680,1713670248739,-500.0,0.0001726,2]
[323109681,1713670248748,-500.0,0.0001726,2]
[323109682,1713670248758,-500.0,0.0001726,2]
[323109683,1713670248767,-500.0,0.0001726,2]
[323109684,1713670248776,-500.0,0.0001726,2]
[323109685,1713670248785,-425.85164457,0.0001726,2]
[323109686,1713670248795,-500.0,0.0001726,2]
[323109687,1713670248805,-500.0,0.0001726,2]
[323109688,1713670248814,-501.32349254,0.00017433,2]
[323109689,1713670248824,-294.51961382,0.00017457,2]
[323109690,1713670248874,-1100.86592213,0.00017522,2]
[323109691,1713670248884,-1025.60238709,0.00017522,2]
[323109692,1713670248893,-500.0,0.00017532,2]
[323109693,1713670248902,-500.0,0.00017532,2]
[323109694,1713670248912,-500.0,0.00017532,2]
[323109695,1713670248926,-1127.77,0.00017532,2]
[323109696,1713670248936,-1041.93,0.00017532,2]
[323109697,1713670248945,-786.19,0.00017532,2]
[323109698,1713670248955,-1958.0,0.00017532,2]
[323109699,1713670248964,-500.0,0.00017532,2]
[323109700,1713670248974,-500.0,0.00017532,2]
[323109701,1713670248983,-500.0,0.00017532,2]
[323109702,1713670248993,-500.0,0.00017532,2]
[323109703,1713670249003,-1806.43,0.00017532,2]
[323109704,1713670249013,-500.0,0.00017532,2]
[323109705,1713670249022,-500.0,0.00017532,2]
[323109706,1713670249031,-500.0,0.00017532,2]
[323109707,1713670249040,-834.31,0.00017532,2]
[323109708,1713670249050,-500.0,0.00017532,2]
[323109709,1713670249058,-500.0,0.00017532,2]
[323109710,1713670249067,-500.0,0.00017532,2]
[323109711,1713670249076,-500.0,0.00017532,2]
[323109712,1713670249085,-500.0,0.00017532,2]
[323109713,1713670249095,-500.0,0.00017532,2]
[323109714,1713670249104,-500.0,0.00017532,2]
[323109715,1713670249114,-500.0,0.00017532,2]
[323109716,1713670249123,-1630.7,0.00017532,2]
[323109717,1713670249133,-2279.27,0.00017532,2]
[323109718,1713670249142,-500.0,0.00017532,2]
[323109719,1713670249151,-1356.27,0.00017532,2]
[323109720,1713670249160,-500.0,0.00017532,2]
[323109721,1713670249173,-500.0,0.00017532,2]
[323109722,1713670249182,-461.43407244,0.00017532,2]
[323109723,1713670249192,-500.0,0.00017532,2]
[323109724,1713670249202,-500.0,0.00017532,2]
[323109725,1713670249211,-500.0,0.00017532,2]
[323109726,1713670249220,-576.36,0.00017532,2]
[323109727,1713670249229,-500.0,0.00017532,2]
[323109728,1713670249238,-266.09561345,0.00017533,2]
[323109729,1713670249247,-196.78406159,0.00017533,2]
[323109730,1713670249257,-154.05297859,0.00017533,2]
[323109731,1713670249267,-500.0,0.00017533,2]
[323109732,1713670249276,-434.38799811,0.00017533,2]
[323109733,1713670249285,-500.0,0.00017533,2]
[323109734,1713670249294,-256.88482545,0.00017533,2]
[323109735,1713670249303,-207.36236155,0.00017533,2]
[323109736,1713670249312,-500.0,0.00017533,2]
[323109737,1713670249322,-181.46700013,0.00017533,2]
[323109738,1713670249331,-500.0,0.00017533,2]
[323109739,1713670249340,-376.84970919,0.00017533,2]
[323109740,1713670249349,-188.39105515,0.00017533,2]
[323109741,1713670249358,-500.0,0.00017533,2]
[323109742,1713670249368,-500.0,0.00017533,2]
[323109743,1713670249377,-387.46057426,0.00017533,2]
[323109744,1713670249386,-543.76988617,0.00017533,2]
[323109745,1713670249396,-500.0,0.00017533,2]
[323109746,1713670249406,-639.9517038,0.00017533,2]
[323109747,1713670249415,-500.0,0.00017533,2]
[323109748,1713670249434,-500.0,0.00017533,2]
[323109749,1713670249443,-500.0,0.00017533,2]
[323109750,1713670249453,-521.38008646,0.00017533,2]
[323109751,1713670249462,-500.0,0.00017533,2]
[323109752,1713670249471,-500.0,0.00017533,2]
[323109753,1713670249480,-500.0,0.00017533,2]
[323109754,1713670249490,-500.0,0.00017533,2]
[323109755,1713670249500,-500.0,0.00017533,2]
[323109756,1713670249513,-500.0,0.00017533,2]
[323109757,1713670249522,-573.45404953,0.00017533,2]
[323109758,1713670249531,-500.0,0.00017533,2]
[323109759,1713670249541,-607.17554029,0.00017533,2]
[323109760,1713670249550,-500.0,0.00017533,2]
[323109761,1713670249559,-345.63280796,0.00017533,2]
[323109762,1713670249568,-216.99758876,0.00017533,2]
[323109763,1713670249579,-500.0,0.00017533,2]
[323109764,1713670249587,-615.13233528,0.00017533,2]
[323109765,1713670249596,-500.0,0.00017533,2]
[323109766,1713670249606,-500.0,0.00017533,2]
[323109767,1713670249615,-500.0,0.00017533,2]
[323109768,1713670249624,-500.0,0.00017533,2]
[323109769,1713670249633,-500.0,0.00017533,2]
[323109770,1713670249642,-153.0834213,0.00017533,2]
[323109771,1713670249664,-329.52492774,0.00017533,2]
[323109772,1713670249679,-500.0,0.00017533,2]
[323109773,1713670249688,-326.42307239,0.00017533,2]
[323109774,1713670249713,-173.57692761,0.00017533,2]
[323109775,1713670249723,-500.0,0.00017533,2]
[323109776,1713670249732,-287.94182933,0.00017533,2]
[323109777,1713670249806,-500.0,0.0001671,2]
[323109778,1713670249815,-500.0,0.00016984,2]
[323109779,1713670249825,-254.13277576,0.00017258,2]
[323109780,1713670249977,-245.86722424,0.00017258,2]
[323109781,1713670249986,-358.97796544,0.00017532,2]
[323109782,1713670249997,-141.02203456,0.00017532,2]
[323109783,1713670250007,-212.05817067,0.00017533,2]
[323109784,1713670250016,-151.0,0.00017533,2]
[323109785,1713670250025,-170.653962,0.00017533,2]
[323109786,1713670250034,-500.0,0.00017533,2]
[323109787,1713670250043,-500.0,0.00017533,2]
[323109788,1713670250052,-616.44,0.00017533,2]
[323109789,1713670250062,-227.92922091,0.00017533,2]
[323109790,1713670250071,-500.0,0.00017533,2]
[323109791,1713670250081,-549.33927444,0.00017533,2]
[323109792,1713670250090,-500.0,0.00017533,2]
[323109793,1713670250099,-500.0,0.00017533,2]
[323109794,1713670250108,-245.255984,0.00017533,2]
[323109795,1713670250117,-500.0,0.00017533,2]
[323109796,1713670250126,-278.360643,0.00017533,2]
[323109797,1713670250135,-500.0,0.00017533,2]
[323109798,1713670250145,-278.360643,0.00017533,2]
[323109799,1713670250153,-206.06706181,0.00017533,2]
[323109800,1713670250280,-175.02472608,0.00017533,2]
[323109801,1713670250289,-639.32,0.00017533,2]
[323109802,1713670250299,-1142.59,0.00017533,2]
[323109803,1713670250308,-1722.38,0.00017533,2]
[323109804,1713670250318,-166.81743681,0.00017533,2]
[323109805,1713670250326,-677.05,0.00017533,2]
[323109806,1713670250335,-500.0,0.00017533,2]
[323109807,1713670250345,-500.0,0.00017533,2]
[323109808,1713670250354,-500.0,0.00017534,2]
[323109809,1713670250364,-5.42253871,0.00017534,2]
[323109810,1713670250376,-578.56949914,0.00017534,2]
[323109811,1713670250385,-167.32,0.00017534,2]
[323109812,1713670250395,-300.35411467,0.00017534,2]
[323109813,1713670250404,-500.0,0.00017534,2]
[323109814,1713670250414,-185.85843361,0.00017534,2]
[323109815,1713670250425,-599.90802884,0.00017534,2]
[323109816,1713670250434,-198.98907702,0.00017534,2]
[323109817,1713670250446,-195.03772354,0.00017534,2]
[323109818,1713670250455,-500.0,0.00017534,2]
[323109819,1713670250464,-392.68950699,0.00017534,2]
[323109820,1713670250475,-107.31049301,0.00017534,2]
[323109821,1713670250485,-349.82950699,0.00017534,2]
[323109822,1713670250496,-150.17049301,0.00017534,2]
[323109823,1713670250507,-399.38675509,0.00017534,2]
[323109824,1713670250524,-136.40795505,0.00017534,2]
[323109825,1713670250533,-389.83590835,0.00017534,2]
[323109826,1713670250543,-999.69,0.00017756,2]
[323109827,1713670250553,-157.86285769,0.0001777,2]
[323109828,1713670250563,-2867.76667171,0.0001778,2]
[323109839,1713671154802,3013.574,0.00017,10]
[323109840,1713671347224,-1244.24905786,0.00013277,2]
[323109841,1713671347245,-150.0,0.00013297,2]
[323109842,1713671347266,-241.32703081,0.00013298,2]
[323109855,1713671431957,-155.0,0.00013129,2]
[323109856,1713671431967,-515.64276373,0.0001313,2]
[323109857,1713671431976,-295.79187001,0.0001313,2]
[323109858,1713671431987,-219.85089372,0.0001313,2]
[323109859,1713671431996,-515.64276373,0.0001313,2]
[323109860,1713671432006,-64.50634255,0.00013131,2]
[323109861,1713671432023,-417.56949461,0.00013131,2]
[323109862,1713671432032,-493.2212998,0.00013131,2]
[323109863,1713671432230,-150.38779576,0.00013131,2]
[323109864,1713671432239,-698.91,0.00013132,2]
[323109865,1713671432249,-1246.56947308,0.00013297,2]
[323109866,1713671432260,-22949.41035227,0.00013298,2]
[323109867,1713671432269,-210.0,0.00014627,2]
[323109868,1713671432278,-908.05,0.00014918,2]
[323109869,1713671432287,-456.73,0.00014962,2]
[323109870,1713671432297,-200.0,0.00014984,2]
[323109871,1713671432308,-150.0,0.00014986,2]
[323109872,1713671432318,-5000.0,0.00015,2]
[323109873,1713671432328,-500.0,0.00015011,2]
[323109874,1713671432337,-181.71,0.00015069,2]
[323109875,1713671432347,-193.29,0.00015116,2]
[323109876,1713671432356,-267.4,0.00015148,2]
[323109877,1713671432365,-200.0,0.0001515,2]
[323109878,1713671432374,-622.77,0.00015157,3]
[323109879,1713671432384,-1038.17554806,0.00015204,2]
[323109880,1713671432393,-14305.01364336,0.00015205,2]
[323109907,1713671437511,-375.58603771,0.00015205,2]
[323109908,1713671437567,-9219.40031893,0.00015205,2]
[323109909,1713671437577,-176.58,0.00015217,2]
[323109910,1713671437586,-251.68,0.00015237,2]
[323109911,1713671437595,-698.91,0.00015396,2]
[323109912,1713671437605,-637.6400615,0.000155,2]
[323109913,1713671437614,-668.53,0.00016051,2]
[323109914,1713671437623,-668.53,0.00016056,2]
[323109915,1713671437633,-668.53,0.0001606,2]
[323109916,1713671437642,-668.53,0.00016064,2]
[323109917,1713671437651,-668.53,0.00016068,2]
[323109918,1713671437660,-668.53,0.00016072,2]
[323109919,1713671437670,-668.53,0.00016077,2]
[323109920,1713671437679,-668.53,0.00016081,2]
[323109921,1713671437688,-668.53,0.00016085,2]
[323109922,1713671437697,-668.53,0.00016089,2]
[323109923,1713671437706,-668.53,0.00016094,2]
[323109924,1713671437715,-377.11124442,0.00016098,2]
[323109925,1713671437734,-291.41875558,0.00016098,2]
[323109926,1713671437743,-172.81990167,0.00016102,2]
[323109927,1713671437754,-495.71009833,0.00016102,2]
[323109928,1713671437763,-668.53,0.00016106,2]
[323109929,1713671437773,-668.53,0.0001611,2]
[323109930,1713671437782,-668.53,0.00016115,2]
[323109931,1713671437793,-668.53,0.00016119,2]
[323109932,1713671437814,-132.9269616,0.00016123,2]
[323109933,1713671437839,-364.0,0.00016123,2]
[323109934,1713671437867,-171.6030384,0.00016123,2]
[323109935,1713671437889,-668.53,0.00016127,2]
[323109936,1713671437912,-668.53,0.00016132,2]
[323109937,1713671437937,-1500.0,0.00016425,2]
[323109939,1713671437962,-607.0,0.00016439,2]
[323109941,1713671437972,-536.0,0.00016439,2]
[323109943,1713671437981,-718.00116,0.0001647,2]
[323109945,1713671437990,-210.36051231,0.0001656,2]
[323109947,1713671438002,-1289.63948769,0.0001656,2]
[323109949,1713671438012,-996.34486718,0.0001661,2]
[323109951,1713671438021,-250.0,0.000167,2]
[323109953,1713671438029,-252.6,0.000167,2]
[323109955,1713671438039,-347.28345525,0.00016708,2]
[323109957,1713671438048,-582.21,0.00016709,2]
[323109959,1713671438058,-255.54062416,0.00016709,2]
[323109961,1713671438067,-500.0,0.00016709,2]
[323109963,1713671438076,-500.0,0.00016709,2]
[323109965,1713671438085,-500.0,0.00016709,2]
[323109967,1713671438094,-508.63356586,0.00016709,2]
[323109969,1713671438103,-500.0,0.00016709,2]
[323109971,1713671438113,-501.7017845,0.00016709,2]
[323109973,1713671438122,-500.0,0.00016709,2]
[323109975,1713671438132,-500.0,0.00016709,2]
[323109977,1713671438142,-500.0,0.00016709,2]
[323109979,1713671438151,-500.0,0.00016709,2]
[323109981,1713671438160,-500.0,0.00016709,2]
[323109983,1713671438170,-500.0,0.00016709,2]
[323109985,1713671438180,-500.0,0.00016709,2]
[323109988,1713671438189,-500.0,0.00016709,2]
[323109990,1713671438199,-500.0,0.00016709,2]
[323109992,1713671438208,-500.0,0.00016709,2]
[323109994,1713671438217,-500.0,0.00016709,2]
[323109996,1713671438226,-500.0,0.00016709,2]
[323109998,1713671438236,-501.13,0.00016709,2]
[323110000,1713671438245,-500.0,0.00016709,2]
[323110002,1713671438254,-500.0,0.00016709,2]
[323110004,1713671438263,-500.0,0.00016709,2]
[323110005,1713671438272,-500.0,0.00016709,2]
[323110008,1713671438282,-500.0,0.00016709,2]
[323110010,1713671438291,-500.0,0.00016709,2]
[323110012,1713671438301,-537.8,0.00016709,2]
[323110014,1713671438309,-500.0,0.00016709,2]
[323110015,1713671438319,-500.0,0.00016709,2]
[323110018,1713671438328,-618.6,0.00016709,2]
[323110019,1713671438337,-500.0,0.00016709,2]
[323110021,1713671438346,-502.51590991,0.00016709,2]
[323110023,1713671438355,-500.0,0.00016709,2]
[323110026,1713671438364,-500.0,0.00016709,2]
[323110028,1713671438373,-500.0,0.00016709,2]
[323110029,1713671438382,-500.0,0.00016709,2]
[323110031,1713671438391,-500.0,0.00016709,2]
[323110033,1713671438400,-534.2,0.00016709,2]
[323110035,1713671438410,-500.0,0.00016709,2]
[323110037,1713671438419,-500.0,0.00016709,2]
[323110039,1713671438427,-500.0,0.00016709,2]
[323110041,1713671438436,-500.0,0.00016709,2]
[323110043,1713671438447,-617.58,0.00016709,2]
[323110045,1713671438456,-305.30557975,0.00016709,2]
[323110047,1713671438465,-970.63,0.00016709,2]
[323110049,1713671438474,-500.0,0.00016709,2]
[323110051,1713671438484,-511.36,0.00016709,2]
[323110053,1713671438493,-500.0,0.00016709,2]
[323110055,1713671438502,-555.46,0.00016709,2]
[323110057,1713671438511,-601.03,0.00016709,2]
[323110059,1713671438521,-1598.29,0.00016709,2]
[323110061,1713671438530,-503.24,0.00016709,2]
[323110063,1713671438539,-626.88420638,0.00016709,2]
[323110065,1713671438548,-500.0,0.00016709,2]
[323110067,1713671438557,-500.0,0.00016709,2]
[323110069,1713671438566,-508.8550607,0.00016709,2]
[323110071,1713671438575,-2112.47,0.00016709,2]